lending/lending_fUSD_20260306
["ID","MTS","AMOUNT","RATE_DAILY","PERIOD"]
[407831482,1772814999104,-565.24,0.0004722,30]
[407831483,1772814999113,-181.95,0.0004722,30]
[407831484,1772814999122,-5000.0,0.0004722,120]
[407831485,1772814999131,-202.51,0.0004722,30]
[407831486,1772814999142,-563.11,0.0004722,30]
[407831487,1772814999151,-474.0,0.0004722,30]
[407831488,1772814999160,-181.95,0.0004722,30]
[407831489,1772814999169,-565.24,0.0004722,30]
[407831490,1772814999178,-632.72,0.0004722,30]
[407831491,1772814999188,-563.11,0.0004722,30]
[407831492,1772814999197,-474.0,0.0004722,30]
[407831493,1772814999206,-632.72,0.0004722,30]
[407831494,1772814999216,-173.22,0.0004722,30]
[407831495,1772814999225,-565.24,0.0004722,30]
[407831496,1772814999235,-181.95,0.0004722,30]
[407831497,1772814999245,-474.0,0.0004722,30]
[407831498,1772814999254,-563.11,0.0004722,30]
[407831499,1772814999264,-181.95,0.0004722,30]
[407831500,1772814999273,-565.24,0.0004722,30]
[407831501,1772814999283,-523.33,0.0004722,30]
[407831502,1772814999292,-202.51,0.0004722,30]
[407831503,1772814999302,-565.24,0.0004722,30]
[407831504,1772814999312,-563.11,0.0004722,30]
[407831505,1772814999321,-202.51,0.0004722,30]
[407831506,1772814999331,-300.0,0.0004722,30]
[407831507,1772814999340,-632.72,0.0004722,30]
[407831508,1772814999350,-474.0,0.0004722,30]
[407831509,1772814999360,-563.11,0.0004722,30]
[407831510,1772814999370,-565.24,0.0004722,30]
[407831511,1772814999379,-202.51,0.0004722,30]
[407831512,1772814999389,-632.72,0.0004722,30]
[407831513,1772814999399,-474.0,0.0004722,30]
[407831514,1772814999409,-181.95,0.0004722,30]
[407831515,1772814999418,-563.11,0.0004722,30]
[407831516,1772814999428,-202.51,0.0004722,30]
[407831517,1772814999437,-565.24,0.0004722,30]
[407831518,1772814999447,-500.0,0.0004722,120]
[407831519,1772814999457,-500.0,0.0004722,120]
[407831520,1772814999466,-271.0984349,0.0004722,120]
[407831521,1772814999477,-565.24,0.0004722,30]
[407831522,1772814999487,-632.72,0.0004722,30]
[407831523,1772814999496,-202.51,0.0004722,30]
[407831524,1772814999505,-181.95,0.0004722,30]
[407831525,1772814999515,-474.0,0.0004722,30]
[407831526,1772814999524,-563.11,0.0004722,30]
[407831527,1772814999533,-568.41465126,0.0004722,120]
[407831528,1772814999542,-300.0,0.0004722,30]
[407831529,1772814999552,-632.72,0.0004722,30]
[407831530,1772814999561,-300.0,0.0004722,30]
[407831531,1772814999570,-565.24,0.0004722,30]
[407831532,1772814999580,-563.11,0.0004722,30]
[407831533,1772814999589,-474.0,0.0004722,30]
[407831534,1772814999598,-202.51,0.0004722,30]
[407831535,1772814999608,-181.95,0.0004722,30]
[407831536,1772814999617,-251.39284069,0.0004722,120]
[407831537,1772814999627,-474.0,0.0004722,30]
[407831538,1772814999636,-563.11,0.0004722,30]
[407831539,1772814999645,-300.0,0.0004722,30]
[407831540,1772814999655,-181.95,0.0004722,30]
[407831541,1772814999664,-499.02,0.0004722,30]
[407831542,1772814999674,-565.24,0.0004722,30]
[407831543,1772814999683,-368.28,0.0004722,120]
[407831544,1772814999692,-202.51,0.0004722,30]
[407831545,1772814999702,-300.0,0.0004722,30]
[407831546,1772814999711,-563.11,0.0004722,30]
[407831547,1772814999720,-474.0,0.0004722,30]
[407831548,1772814999731,-504.21581439,0.0004722,120]
[407831549,1772814999740,-202.51,0.0004722,30]
[407831550,1772814999752,-632.72,0.0004722,30]
[407831551,1772814999762,-565.24,0.0004722,30]
[407831552,1772814999771,-181.95,0.0004722,30]
[407831553,1772814999782,-474.0,0.0004722,30]
[407831554,1772814999791,-563.11,0.0004722,30]
[407831555,1772814999801,-231.05862432,0.0004722,120]
[407831556,1772814999810,-150.0,0.0004722,120]
[407831557,1772814999822,-152.17,0.0004722,30]
[407831558,1772814999832,-632.72,0.0004722,30]
[407831559,1772814999841,-565.24,0.0004722,30]
[407831560,1772814999851,-181.95,0.0004722,30]
[407831561,1772814999861,-474.0,0.0004722,30]
[407831562,1772814999871,-300.0,0.0004722,30]
[407831563,1772814999881,-299.0,0.0004722,30]
[407831564,1772814999891,-563.11,0.0004722,30]
[407831565,1772814999900,-299.0,0.0004722,30]
[407831566,1772814999911,-1247.57,0.0004722,30]
[407831567,1772814999921,-1000.0,0.0004722,120]
[407831568,1772814999930,-1000.0,0.0004722,120]
[407831569,1772814999940,-1000.0,0.0004722,120]
[407831570,1772814999950,-1000.0,0.0004722,120]
[407831571,1772814999960,-1000.0,0.0004722,120]
[407831572,1772814999970,-1000.0,0.0004722,120]
[407831573,1772814999980,-1000.0,0.0004722,120]
[407831574,1772814999989,-1000.0,0.0004722,120]
[407831575,1772814999999,-1000.0,0.0004722,120]
[407831576,1772815000012,-1000.0,0.0004722,120]
[407831577,1772815000021,-1000.0,0.0004722,120]
[407831578,1772815000031,-1000.0,0.0004722,120]
[407831579,1772815000040,-1000.0,0.0004722,120]
[407831580,1772815000050,-1000.0,0.0004722,120]
[407831581,1772815000060,-628.0492152,0.0004722,120]
[407831582,1772815000070,-151.0,0.0004722,30]
[407831583,1772815000079,-565.24,0.0004722,30]
[407831584,1772815000088,-563.11,0.0004722,30]
[407831585,1772815000098,-181.95,0.0004722,30]
[407831586,1772815000108,-202.51,0.0004722,30]
[407831587,1772815000118,-299.0,0.0004722,30]
[407831588,1772815000128,-632.72,0.0004722,30]
[407831589,1772815000137,-474.0,0.0004722,30]
[407831590,1772815000148,-400.0,0.0004722,120]
[407831591,1772815000158,-400.0,0.0004722,120]
[407831592,1772815000168,-400.0,0.0004722,120]
[407831593,1772815000179,-400.0,0.0004722,120]
[407831594,1772815000188,-400.0,0.0004722,120]
[407831595,1772815000198,-400.0,0.0004722,120]
[407831596,1772815000212,-400.0,0.0004722,120]
[407831597,1772815000223,-400.0,0.0004722,120]
[407831598,1772815000232,-400.0,0.0004722,120]
[407831599,1772815000242,-400.0,0.0004722,120]
[407831600,1772815000251,-400.0,0.0004722,120]
[407831601,1772815000261,-400.0,0.0004722,120]
[407831602,1772815000271,-463.12731914,0.0004722,120]
[407831603,1772815000280,-202.51,0.0004722,30]
[407831604,1772815000291,-698.02796468,0.0004722,120]
[407831605,1772815000300,-300.0,0.0004722,30]
[407831606,1772815000311,-300.0,0.0004722,30]
[407831607,1772815000320,-181.95,0.0004722,30]
[407831608,1772815000330,-1247.55,0.0004722,30]
[407831609,1772815000340,-226.88,0.0004722,30]
[407831610,1772815000351,-300.0,0.0004722,30]
[407831611,1772815000361,-474.0,0.0004722,30]
[407831612,1772815000371,-151.0,0.0004722,30]
[407831613,1772815000381,-563.11,0.0004722,30]
[407831614,1772815000391,-151.0,0.0004722,30]
[407831615,1772815000401,-202.51,0.0004722,30]
[407831616,1772815000414,-632.72,0.0004722,30]
[407831617,1772815000424,-1000.0,0.0004722,120]
[407831618,1772815000435,-1000.0,0.0004722,120]
[407831619,1772815000445,-320.48470475,0.0004722,120]
[407831620,1772815000455,-1000.0,0.0004722,120]
[407831621,1772815000465,-467.20613935,0.0004722,120]
[407831622,1772815000474,-565.24,0.00047221,30]
[407831623,1772815000484,-563.11,0.00047221,30]
[407831624,1772815000494,-202.51,0.00047221,30]
[407831625,1772815000504,-565.24,0.00047221,30]
[407831626,1772815000514,-565.24,0.00047221,30]
[407831627,1772815000524,-2600.0,0.00047222,60]
[407831628,1772815000534,-500.51393491,0.00047226,15]
[407831629,1772815000543,-504.38,0.00047237,2]
[407831630,1772815000553,-563.11,0.00047237,30]
[407831631,1772815000563,-202.51,0.00047237,30]
[407831632,1772815000573,-151.0,0.00047237,30]
[407831633,1772815000583,-151.0,0.00047237,30]
[407831634,1772815000593,-151.0,0.00047237,30]
[407831635,1772815000602,-300.0,0.00047237,30]
[407831636,1772815000612,-151.0,0.00047237,30]
[407831637,1772815000622,-563.11,0.00047237,30]
[407831638,1772815000632,-202.51,0.00047237,30]
[407831639,1772815000642,-300.0,0.00047237,30]
[407831640,1772815000653,-563.11,0.00047237,30]
[407831641,1772815000662,-1000.0,0.00047239,30]
[407831642,1772815000672,-418.06,0.00047242,30]
[407831643,1772815000682,-181.95,0.00047246,30]
[407831644,1772815000692,-474.0,0.00047246,30]
[407831645,1772815000702,-474.0,0.00047246,30]
[407831646,1772815000712,-474.0,0.00047246,30]
[407831647,1772815000722,-565.24,0.00047246,30]
[407831648,1772815000733,-474.0,0.00047246,30]
[407831649,1772815000748,-565.24,0.00047246,30]
[407831650,1772815000767,-474.0,0.00047246,30]
[407831651,1772815000777,-563.11,0.00047246,30]
[407831652,1772815000786,-474.0,0.00047246,30]
[407831653,1772815000796,-565.24,0.00047246,30]
[407831654,1772815000807,-606.05,0.00047246,30]
[407831655,1772815000817,-474.0,0.00047246,30]
[407831656,1772815000827,-474.0,0.00047246,30]
[407831657,1772815000836,-474.0,0.00047246,30]
[407831658,1772815000846,-181.95,0.00047247,30]
[407831659,1772815000856,-632.72,0.00047247,30]
[407831660,1772815000866,-181.95,0.00047247,30]
[407831661,1772815000876,-181.96,0.00047247,30]
[407831662,1772815000886,-632.72,0.00047247,30]
[407831663,1772815000896,-632.72,0.00047247,30]
[407831664,1772815000907,-181.95,0.00047247,30]
[407831665,1772815000917,-632.72,0.00047247,30]
[407831666,1772815000928,-632.72,0.00047247,30]
[407831667,1772815000938,-181.95,0.00047247,30]
[407831668,1772815000948,-632.72,0.00047247,30]
[407831669,1772815000959,-181.95,0.00047247,30]
[407831670,1772815000969,-181.95,0.00047247,30]
[407831671,1772815000979,-632.72,0.00047247,30]
[407831672,1772815000989,-181.48,0.00047247,30]
[407831673,1772815000999,-632.72,0.00047247,30]
[407831674,1772815001009,-150.0,0.000473,83]
[407831675,1772815001018,-212.2,0.000473,35]
[407831676,1772815001029,-1404.22508594,0.00047438,2]
[407831677,1772815001038,-3000.0,0.00047496,60]
[407831678,1772815001048,-1000.0,0.00047513,30]
[407831679,1772815001059,-5295.38822673,0.000476,2]
[407831680,1772815001069,-152.0,0.00047628,17]
[407831681,1772815001079,-150.38675778,0.00047685,114]
[407831682,1772815001089,-212092.0,0.000477,60]
[407831683,1772815001099,-2100.0,0.0004777,60]
[407831684,1772815001108,-1000.0,0.00047787,30]
[407831685,1772815001118,-688.7349,0.000478,90]
[407831686,1772815001128,-273.49,0.000478,90]
[407831687,1772815001138,-627.3626,0.000478,90]
[407831688,1772815001148,-273.59,0.000478,90]
[407831689,1772815001157,-366.7191,0.000479,90]
[407831690,1772815001167,-50000.0,0.00048,62]
[407831691,1772815001177,-15000.0,0.00048,2]
[407831692,1772815001186,-500.0,0.00048,6]
[407831693,1772815001196,-250.0,0.00048,5]
[407831694,1772815001205,-3000.0,0.00048044,60]
[407831695,1772815001216,-1000.0,0.00048061,30]
[407831696,1772815001226,-8620.52067177,0.00048064,108]
[407831697,1772815001236,-1000.0,0.00048158,2]
[407831698,1772815001245,-500.0,0.0004822,2]
[407831699,1772815001254,-500.0,0.0004822,2]
[407831700,1772815001264,-500.0,0.0004822,2]
[407831701,1772815001274,-500.0,0.0004822,2]
[407831702,1772815001284,-500.0,0.0004822,2]
[407831703,1772815001295,-500.0,0.0004822,2]
[407831704,1772815001305,-500.0,0.0004822,2]
[407831705,1772815001315,-500.0,0.0004822,2]
[407831706,1772815001324,-500.0,0.0004822,2]
[407831707,1772815001333,-500.0,0.0004822,2]
[407831708,1772815001344,-500.0,0.0004822,2]
[407831709,1772815001354,-500.0,0.0004822,2]
[407831710,1772815001364,-500.0,0.0004822,2]
[407831711,1772815001374,-500.0,0.0004822,2]
[407831712,1772815001383,-500.0,0.0004822,2]
[407831713,1772815001393,-500.0,0.0004822,2]
[407831714,1772815001403,-500.0,0.0004822,2]
[407831715,1772815001413,-500.0,0.0004822,2]
[407831716,1772815001423,-500.0,0.0004822,2]
[407831717,1772815001433,-500.0,0.0004822,2]
[407831718,1772815001442,-500.0,0.0004822,2]
[407831719,1772815001569,-500.0,0.0004822,2]
[407831720,1772815001579,-500.0,0.0004822,2]
[407831721,1772815001588,-500.0,0.0004822,2]
[407831722,1772815001598,-500.0,0.0004822,2]
[407831723,1772815001607,-500.0,0.0004822,2]
[407831724,1772815001616,-500.0,0.0004822,2]
[407831725,1772815001625,-500.0,0.0004822,2]
[407831726,1772815001635,-500.0,0.0004822,2]
[407831727,1772815001644,-500.0,0.0004822,2]
[407831728,1772815001654,-500.0,0.0004822,2]
[407831729,1772815001663,-500.0,0.0004822,2]
[407831730,1772815001673,-500.0,0.0004822,2]
[407831731,1772815001682,-500.0,0.0004822,2]
[407831732,1772815001692,-500.0,0.0004822,2]
[407831733,1772815001701,-500.0,0.0004822,2]
[407831734,1772815001710,-500.0,0.0004822,2]
[407831735,1772815001719,-500.0,0.0004822,2]
[407831736,1772815001728,-500.0,0.0004822,2]
[407831737,1772815001739,-500.0,0.0004822,2]
[407831738,1772815001752,-500.0,0.0004822,2]
[407831739,1772815001762,-500.0,0.0004822,2]
[407831740,1772815001771,-500.0,0.0004822,2]
[407831741,1772815001780,-500.0,0.0004822,2]
[407831742,1772815001791,-500.0,0.0004822,2]
[407831743,1772815001800,-500.0,0.0004822,2]
[407831744,1772815001810,-500.0,0.0004822,2]
[407831745,1772815001821,-500.0,0.0004822,2]
[407831746,1772815001832,-500.0,0.0004822,2]
[407831747,1772815001841,-500.0,0.0004822,2]
[407831748,1772815001851,-500.0,0.0004822,2]
[407831749,1772815001861,-500.0,0.0004822,2]
[407831750,1772815001870,-500.0,0.0004822,2]
[407831751,1772815001880,-500.0,0.0004822,2]
[407831752,1772815001890,-500.0,0.0004822,2]
[407831753,1772815001899,-500.0,0.0004822,2]
[407831754,1772815001909,-500.0,0.0004822,2]
[407831755,1772815001918,-500.0,0.0004822,2]
[407831756,1772815001928,-500.0,0.0004822,2]
[407831757,1772815001938,-500.0,0.0004822,2]
[407831758,1772815001949,-500.0,0.0004822,2]
[407831759,1772815001958,-500.0,0.0004822,2]
[407831760,1772815001969,-500.0,0.0004822,2]
[407831761,1772815001978,-500.0,0.0004822,2]
[407831762,1772815001987,-500.0,0.0004822,2]
[407831763,1772815001997,-500.0,0.0004822,2]
[407831764,1772815002006,-500.0,0.0004822,2]
[407831765,1772815002015,-500.0,0.0004822,2]
[407831766,1772815002025,-500.0,0.0004822,2]
[407831767,1772815002035,-500.0,0.0004822,2]
[407831768,1772815002044,-500.0,0.0004822,2]
[407831769,1772815002053,-500.0,0.0004822,2]
[407831770,1772815002063,-500.0,0.0004822,2]
[407831771,1772815002072,-500.0,0.0004822,2]
[407831772,1772815002082,-500.0,0.0004822,2]
[407831773,1772815002092,-524.0,0.0004822,2]
[407831774,1772815002102,-153.25442737,0.0004828,30]
[407831775,1772815002113,-365.4727,0.000483,90]
[407831776,1772815002122,-150.0,0.000483,85]
[407831777,1772815002131,-2600.0,0.00048318,60]
[407831778,1772815002141,-1000.0,0.00048335,30]
[407831779,1772815002150,-156.20696653,0.0004835,2]
[407831780,1772815002159,-12328.48317252,0.000484,3]
[407831781,1772815002169,-789.7499515,0.000485,30]
[407831782,1772815002178,-3467.74756997,0.000485,30]
[407831783,1772815002188,-1000.0,0.00048609,30]
[407831784,1772815002197,-152.0,0.00048689,18]
[407831785,1772815002206,-240.0,0.00048704,90]
[407831786,1772815002216,-1003.71797604,0.000488,15]
[407831787,1772815002226,-2100.0,0.00048866,60]
[407831788,1772815002235,-9546.30467619,0.00048875,60]
[407831789,1772815002244,-1000.0,0.00048883,30]
[407831790,1772815002254,-214.0,0.0004899,30]
[407831791,1772815002263,-213.0,0.0004899,30]
[407831792,1772815002272,-50000.0,0.00049,63]
[407831793,1772815002282,-725.09524667,0.00049,30]
[407831794,1772815002291,-803.12889831,0.00049,30]
[407831795,1772815002300,-504.0,0.00049,30]
[407831796,1772815002309,-2000.0,0.00049,2]
[407831797,1772815002319,-212092.0,0.0004905,60]
[407831798,1772815002329,-1001.55,0.00049089,30]
[407831799,1772815002339,-1001.55,0.00049089,30]
[407831800,1772815002348,-1001.55,0.00049089,30]
[407831801,1772815002357,-1001.55,0.00049089,30]
[407831802,1772815002367,-3000.0,0.0004914,60]
[407831803,1772815002377,-1000.0,0.00049157,30]
[407831804,1772815002387,-224.32388746,0.00049197,116]
[407831805,1772815002397,-1046.13330962,0.000492,60]
[407831806,1772815002406,-2919.7241931,0.000492,60]
[407831807,1772815002415,-100966.78234206,0.000492,60]
[407831808,1772815002425,-150.0,0.000493,88]
[407831809,1772815002434,-800.0,0.00049315,32]
[407831810,1772815002445,-150.0,0.00049324,120]
[407831811,1772815002454,-1001.55,0.00049363,60]
[407831812,1772815002464,-1001.55,0.00049363,60]
[407831813,1772815002474,-2600.0,0.00049414,60]
[407831814,1772815002484,-609.31,0.00049422,30]
[407831815,1772815002495,-1000.0,0.00049431,30]
[407831816,1772815002505,-1109.0,0.00049486,30]
[407831817,1772815002514,-2500.0,0.00049494,60]
[407831818,1772815002526,-2000.0,0.000495,14]
[407831819,1772815002537,-211.37,0.000496,2]
[407831820,1772815002547,-2000.0,0.000496,14]
[407831821,1772815002559,-2000.0,0.000496,14]
[407831822,1772815002569,-1001.55,0.00049637,60]
[407831823,1772815002579,-1001.55,0.00049637,60]
[407831824,1772815002590,-2000.0,0.000497,14]
[407831825,1772815002600,-2000.0,0.000497,14]
[407831826,1772815002610,-1000.0,0.00049705,30]
[407831827,1772815002619,-5000.0,0.00049707,30]
[407831828,1772815002630,-152.0,0.0004975,19]
[407831829,1772815002647,-1279.0,0.00049762,2]
[407831830,1772815002656,-1212.0,0.00049762,2]
[407831831,1772815002665,-922.0,0.00049762,2]
[407831832,1772815002675,-216996.11860005,0.000498,30]
[407831833,1772815002685,-387.40120824,0.000498,30]
[407831834,1772815002694,-3123.74,0.000498,120]
[407831835,1772815002705,-3123.74,0.000498,120]
[407831836,1772815002715,-2000.0,0.000498,14]
[407831837,1772815002725,-2000.0,0.000498,14]
[407831838,1772815002734,-2000.0,0.000499,14]
[407831839,1772815002748,-2000.0,0.000499,14]
[407831840,1772815002758,-1001.55,0.00049911,60]
[407831841,1772815002767,-1001.55,0.00049911,60]
[407831842,1772815002776,-2100.0,0.00049962,60]
[407831843,1772815002787,-1000.0,0.00049979,30]
[407831844,1772815002796,-5575.11913776,0.0004999,14]
[407831845,1772815002805,-459.06149444,0.00049999,7]
[407831846,1772815002815,-418.5800662,0.00049999,15]
[407831847,1772815002824,-50000.0,0.0005,64]
[407831848,1772815002834,-51418.52657712,0.0005,2]
[407831849,1772815002844,-670.56092697,0.0005,30]
[407831850,1772815002853,-379.50297707,0.0005,7]
[407831851,1772815002863,-507.82012762,0.0005,30]
[407831852,1772815002872,-1146.33746198,0.0005,2]
[407831853,1772815002881,-600.0,0.0005,14]
[407831854,1772815002894,-150.0,0.0005,40]
[407831855,1772815002904,-500.0,0.0005,30]
[407831856,1772815002913,-1244.34572594,0.0005,90]
[407831857,1772815002923,-1110.0,0.0005,20]
[407831858,1772815002933,-65017.48277454,0.0005,90]
[407831859,1772815002942,-30000.0,0.0005,30]
[407831860,1772815002951,-537.25,0.0005,2]
[407831861,1772815002961,-545517.01247546,0.0005,120]
[407831862,1772815002970,-96285.3549,0.0005,120]
[407831863,1772815002979,-456.39936,0.0005,20]
[407831864,1772815002990,-600.0,0.0005,120]
[407831865,1772815003000,-600.0,0.0005,120]
[407831866,1772815003010,-600.0,0.0005,120]
[407831867,1772815003020,-600.0,0.0005,120]
[407831868,1772815003030,-43813.59004283,0.0005,30]
[407831869,1772815003041,-10107.16748203,0.0005,30]
[407831870,1772815003050,-150.0,0.0005,120]
[407831871,1772815003059,-527.2125865,0.0005,120]
[407831872,1772815003068,-463.25455878,0.0005,120]
[407831873,1772815003078,-870.56927721,0.0005,60]
[407831874,1772815003087,-683.0,0.0005,60]
[407831875,1772815003096,-9635.5194164,0.0005,120]
[407831876,1772815003105,-1635.63371988,0.0005,45]
[407831877,1772815003114,-561.46118316,0.0005,120]
[407831878,1772815003124,-476.83840675,0.0005,30]
[407831879,1772815003134,-532.85850214,0.0005,120]
[407831880,1772815003146,-4719.15596235,0.0005,120]
[407831881,1772815003156,-2318.31211345,0.0005,120]
[407831882,1772815003165,-1055.81,0.0005,120]
[407831883,1772815003175,-521.96,0.0005,120]
[407831884,1772815003184,-824.0,0.0005,7]
[407831885,1772815003194,-1346.971329,0.0005,120]
[407831886,1772815003203,-151.464665,0.0005,120]
[407831887,1772815003213,-308.02876463,0.0005,30]
[407831888,1772815003223,-584.27,0.0005,120]
[407831889,1772815003232,-160.0,0.0005,14]
[407831890,1772815003242,-717.0,0.0005,120]
[407831891,1772815003251,-24520.0,0.0005,30]
[407831892,1772815003260,-1043.53,0.0005,120]
[407831893,1772815003270,-30331.00429429,0.0005,7]
[407831894,1772815003279,-7058.0088667,0.0005,120]
[407831895,1772815003289,-6222.76685522,0.0005,120]
[407831896,1772815003298,-5846.56,0.0005,120]
[407831897,1772815003308,-817.13548746,0.0005,120]
[407831898,1772815003317,-1687.60509208,0.0005,30]
[407831899,1772815003326,-5411.81307896,0.0005,30]
[407831900,1772815003336,-1166.37686356,0.0005,10]
[407831901,1772815003345,-40000.0,0.0005,30]
[407831902,1772815003354,-10474.45251817,0.0005,120]
[407831903,1772815003363,-50000.0,0.0005,60]
[407831904,1772815003372,-2016.08,0.0005,120]
[407831905,1772815003381,-500.0,0.0005,120]
[407831906,1772815003390,-16649.83,0.0005,120]
[407831907,1772815003399,-400000.0,0.0005,120]
[407831908,1772815003409,-1226.98404,0.0005,20]
[407831909,1772815003419,-1000000.0,0.0005,120]
[407831910,1772815003428,-1000000.0,0.0005,120]
[407831911,1772815003437,-1000000.0,0.0005,120]
[407831912,1772815003446,-1000000.0,0.0005,120]
[407831913,1772815003456,-1000000.0,0.0005,120]
[407831914,1772815003465,-1000000.0,0.0005,120]
[407831915,1772815003475,-1000000.0,0.0005,120]
[407831916,1772815003483,-13163.40677272,0.0005,5]
[407831917,1772815003494,-230.49581068,0.0005,120]
[407831918,1772815003503,-403.21,0.0005,120]
[407831919,1772815003512,-295.13,0.0005,120]
[407831920,1772815003522,-366.68902324,0.0005,120]
[407831921,1772815003531,-172.74325605,0.0005,3]
[407831922,1772815003540,-5298.44,0.0005,30]
[407831923,1772815003549,-1404.22508594,0.0005,120]
[407831924,1772815003559,-500.0,0.0005,120]
[407831925,1772815003569,-1000000.0,0.0005,30]
[407831926,1772815003578,-1000000.0,0.0005,30]
[407831927,1772815003588,-1000000.0,0.0005,30]
[407831928,1772815003598,-1000000.0,0.0005,32]
[407831929,1772815003607,-1000000.0,0.0005,32]
[407831930,1772815003616,-1000000.0,0.0005,33]
[407831931,1772815003625,-1000000.0,0.0005,35]
[407831932,1772815003634,-1000000.0,0.0005,35]
[407831933,1772815003644,-1000000.0,0.0005,35]
[407831934,1772815003653,-1000000.0,0.0005,35]
[407831935,1772815003662,-1000000.0,0.0005,36]
[407831936,1772815003671,-1000000.0,0.0005,36]
[407831937,1772815003681,-1000000.0,0.0005,37]
[407831938,1772815003690,-1000000.0,0.0005,37]
[407831939,1772815003699,-1000000.0,0.0005,37]
[407831940,1772815003709,-900000.0,0.0005,38]
[407831941,1772815003719,-1000000.0,0.0005,38]
[407831942,1772815003728,-1000000.0,0.0005,39]
[407831943,1772815003742,-335160.0,0.0005,40]
[407831944,1772815003752,-335160.0,0.0005,40]
[407831945,1772815003762,-766047.0,0.0005,70]
[407831946,1772815003771,-1000000.0,0.0005,71]
[407831947,1772815003784,-1000000.0,0.0005,71]
[407831948,1772815003794,-1000000.0,0.0005,85]
[407831949,1772815003803,-1000000.0,0.0005,85]
[407831950,1772815003815,-1000000.0,0.0005,95]
[407831951,1772815003824,-1000000.0,0.0005,95]
[407831952,1772815003834,-1000000.0,0.0005,95]
[407831953,1772815003844,-316.26122753,0.0005,120]
[407831954,1772815003853,-151.0,0.0005,120]
[407831955,1772815003864,-151.0,0.0005,120]
[407831956,1772815003874,-151.0,0.0005,120]
[407831957,1772815003884,-151.0,0.0005,120]
[407831958,1772815003894,-151.0,0.0005,120]
[407831959,1772815003904,-151.0,0.0005,120]
[407831960,1772815003914,-151.0,0.0005,120]
[407831961,1772815003924,-20000.0,0.0005,120]
[407831962,1772815003933,-151.0,0.0005,120]
[407831963,1772815003943,-151.0,0.0005,120]
[407831964,1772815003953,-151.0,0.0005,120]
[407831965,1772815003963,-151.0,0.0005,120]
[407831966,1772815003972,-1500.0,0.0005,15]
[407831967,1772815003982,-151.0,0.0005,120]
[407831968,1772815003992,-151.0,0.0005,120]
[407831969,1772815004003,-151.0,0.0005,120]
[407831970,1772815004012,-151.0,0.0005,120]
[407831971,1772815004022,-2800.840232,0.0005,15]
[407831972,1772815004032,-151.0,0.0005,120]
[407831973,1772815004043,-151.0,0.0005,120]
[407831974,1772815004052,-151.0,0.0005,120]
[407831975,1772815004062,-151.0,0.0005,120]
[407831976,1772815004072,-151.0,0.0005,120]
[407831977,1772815004083,-500.0,0.0005,120]
[407831978,1772815004093,-518.5,0.0005,120]
[407831979,1772815004104,-537.6845,0.0005,120]
[407831980,1772815004113,-557.5788265,0.0005,120]
[407831981,1772815004123,-578.20924308,0.0005,120]